fUST/lending_fUST_20240611
["ID","MTS","AMOUNT","RATE_DAILY","PERIOD"]
[329101259,1718104245337,-500.0,0.00022191,2]
[329101260,1718104245350,-500.0,0.00022191,2]
[329101261,1718104245361,-500.0,0.00022191,2]
[329101262,1718104245376,-2112.4,0.00022191,2]
[329101263,1718104245386,-500.0,0.00022191,2]
[329101264,1718104245397,-500.0,0.00022191,2]
[329101265,1718104245407,-500.0,0.00022191,2]
[329101266,1718104245419,-554.8,0.00022191,2]
[329101267,1718104245429,-500.0,0.00022191,2]
[329101268,1718104245440,-312.84819508,0.00022191,2]
[329101311,1718104349263,1758.66729725,9.999e-05,2]
[329101313,1718104933980,155.03875969,9.999e-05,2]
[329101314,1718105012813,1172.44486483,9.999e-05,2]
[329101321,1718105233360,411.64915333,9.999e-05,2]
[329101327,1718105295848,372.78673862,9.999e-05,2]
[329101364,1718105433230,-1058.42857911,0.00015587,2]
[329101429,1718105442039,155.03875969,9.999e-05,2]
[329101431,1718105442140,-977.03738736,0.00015586,2]
[329101432,1718105442156,-978.86291945,0.00015587,2]
[329101433,1718105442170,-489.40086406,0.00016293,2]
[329101434,1718105442184,-3000.0,0.00016294,2]
[329101435,1718105442199,-1139.07338121,0.00016492,2]
[329101436,1718105442211,-1498.6690245,0.00016533,2]
[329101438,1718105442225,-24900.0,0.00016552,2]
[329101440,1718105442238,-250.0,0.0001686,2]
[329101442,1718105442253,-389.541622,0.00017089,2]
[329101443,1718105442266,-632.90357925,0.00018734,2]
[329101444,1718105442281,-281.83331494,0.00018735,2]
[329101445,1718105442294,-686.31644292,0.00018924,2]
[329101446,1718105442309,-285.76830085,0.00018924,2]
[329101447,1718105442323,-327.99229229,0.00018924,2]
[329101448,1718105442335,-158.06038721,0.00018924,2]
[329101449,1718105442348,-309.9070279,0.00018924,2]
[329101450,1718105442361,-692.0639849,0.00018924,2]
[329101451,1718105442374,-400.74537079,0.00018924,2]
[329101452,1718105442386,-309.92252015,0.00018924,2]
[329101453,1718105442401,-501.05927624,0.00018924,2]
[329101455,1718105442414,-7920.63674527,0.00018924,2]
[329101457,1718105442426,-570.85957129,0.00018925,2]
[329101459,1718105442439,-529.07913635,0.0002,4]
[329101460,1718105442451,-153.0,0.0002126,2]
[329101462,1718105442463,-359.8,0.00021794,3]
[329101464,1718105442476,-455.68232556,0.00021817,2]
[329101466,1718105442488,-254.21,0.00021907,3]
[329101468,1718105442501,-762.64,0.00021907,3]
[329101471,1718105442514,-213.03415827,0.00021915,2]
[329101473,1718105442526,-212.50714545,0.00021915,2]
[329101476,1718105442545,-359.32090977,0.00021915,2]
[329101478,1718105442559,-563.15290467,0.00021915,2]
[329101480,1718105442572,-524.04857954,0.00021915,2]
[329101482,1718105442584,-183.63846185,0.00021915,2]
[329101484,1718105442597,-411.20432073,0.00021915,2]
[329101486,1718105442609,-454.75081642,0.00021916,2]
[329101487,1718105442621,-1853.86146306,0.00021916,2]
[329101488,1718105442633,-377.83203942,0.00021916,2]
[329101489,1718105442645,-11572.13402033,0.00021917,15]
[329101490,1718105442657,-500.0,0.00021917,2]
[329101491,1718105442670,-500.0,0.00021917,2]
[329101492,1718105442682,-501.39424638,0.00021917,2]
[329101493,1718105442693,-502.00397062,0.00021917,2]
[329101495,1718105442706,-500.09875197,0.00021917,2]
[329101496,1718105442718,-500.0,0.00021917,2]
[329101497,1718105442731,-500.8717857,0.00021917,2]
[329101498,1718105442743,-500.0,0.00021917,2]
[329101499,1718105442757,-502.65397186,0.00021917,2]
[329101500,1718105442769,-500.0,0.00021917,2]
[329101501,1718105442785,-500.0,0.00021917,2]
[329101502,1718105442798,-500.0,0.00021917,2]
[329101503,1718105442811,-502.27060133,0.00021917,2]
[329101504,1718105442823,-503.52391237,0.00021917,2]
[329101505,1718105442835,-500.0,0.00021917,2]
[329101506,1718105442846,-501.20372779,0.00021917,2]
[329101507,1718105442859,-500.0,0.00021917,2]
[329101509,1718105442873,-503.12154474,0.00021917,2]
[329101511,1718105442886,-500.0,0.00021917,2]
[329101513,1718105442898,-500.0,0.00021917,2]
[329101515,1718105442911,-500.0,0.00021917,2]
[329101517,1718105442923,-500.0,0.00021917,2]
[329101519,1718105442934,-500.0,0.00021917,2]
[329101521,1718105442946,-500.0,0.00021917,2]
[329101522,1718105442957,-519.49438458,0.00021917,2]
[329101523,1718105442968,-501.15983677,0.00021917,2]
[329101524,1718105442979,-511.33260365,0.00021917,2]
[329101525,1718105442989,-315.54397708,0.00021917,2]
[329101527,1718105443000,-503.80010754,0.00021917,2]
[329101528,1718105443178,-590.00910574,0.00021917,2]
[329101529,1718105443189,-500.0,0.00021917,2]
[329101530,1718105443200,-509.92997119,0.00021917,2]
[329101531,1718105443210,-500.0,0.00021917,2]
[329101532,1718105443221,-531.52128321,0.00021917,2]
[329101533,1718105443232,-500.0,0.00021917,2]
[329101534,1718105443243,-513.23153849,0.00021917,2]
[329101535,1718105443254,-540.20277998,0.00021917,2]
[329101536,1718105443266,-500.0,0.00021917,2]
[329101538,1718105443277,-500.0,0.00021917,2]
[329101539,1718105443288,-1009.35867159,0.00021917,2]
[329101541,1718105443300,-57.24701772,0.00021917,2]
[329101543,1718105443320,-442.75298228,0.00021917,2]
[329101544,1718105443331,-500.0,0.00021917,2]
[329101546,1718105443342,-502.44112935,0.00021917,2]
[329101547,1718105443353,-500.0,0.00021917,2]
[329101548,1718105443363,-179.40204502,0.00021917,2]
[329101549,1718105443374,-500.0,0.00021917,2]
[329101550,1718105443384,-500.0,0.00021917,2]
[329101551,1718105443395,-500.0,0.00021917,2]
[329101552,1718105443405,-500.0,0.00021917,2]
[329101553,1718105443416,-500.0,0.00021917,2]
[329101554,1718105443426,-500.0,0.00021917,2]
[329101555,1718105443436,-500.0,0.00021917,2]
[329101556,1718105443448,-500.0,0.00021917,2]
[329101557,1718105443458,-502.50623745,0.00021917,2]
[329101558,1718105443469,-500.0,0.00021917,2]
[329101559,1718105443479,-500.0,0.00021917,2]
[329101560,1718105443490,-500.0,0.00021917,2]
[329101561,1718105443500,-262.5165486,0.00021917,2]
[329101563,1718105443511,-500.0,0.00021917,2]
[329101564,1718105443522,-264.04424033,0.00021917,2]
[329101565,1718105443533,-503.39208149,0.00021917,2]
[329101566,1718105443544,-500.0,0.00021917,2]
[329101567,1718105443556,-500.0,0.00021917,2]
[329101568,1718105443567,-526.47922446,0.00021917,2]
[329101570,1718105443577,-500.0,0.00021917,2]
[329101571,1718105443587,-500.0,0.00021917,2]
[329101572,1718105443597,-500.0,0.00021917,2]
[329101573,1718105443608,-600.38781207,0.00021917,2]
[329101574,1718105443618,-500.0,0.00021917,2]
[329101575,1718105443628,-500.0,0.00021917,2]
[329101576,1718105443639,-500.0,0.00021917,2]
[329101577,1718105443650,-158.83941164,0.00021917,2]
[329101578,1718105443662,-500.0,0.00021917,2]
[329101579,1718105443673,-500.0,0.00021917,2]
[329101580,1718105443684,-500.0,0.00021917,2]
[329101581,1718105443694,-497.34216697,0.00021917,2]
[329101582,1718105443705,-500.0,0.00021917,2]
[329101583,1718105443716,-164.50644238,0.00021917,2]
[329101584,1718105443726,-500.0,0.00021917,2]
[329101585,1718105443737,-500.0,0.00021917,2]
[329101587,1718105443748,-500.0,0.00021917,2]
[329101589,1718105443758,-500.0,0.00021917,2]
[329101590,1718105443768,-502.71974628,0.00021917,2]
[329101591,1718105443781,-500.0,0.00021917,2]
[329101592,1718105443792,-500.0,0.00021917,2]
[329101593,1718105443804,-263.27744964,0.00021917,2]
[329101594,1718105443814,-505.82639184,0.00021917,2]
[329101595,1718105443826,-500.0,0.00021917,2]
[329101596,1718105443837,-500.0,0.00021917,2]
[329101597,1718105443848,-500.0,0.00021917,2]
[329101598,1718105443863,-500.0,0.00021917,2]
[329101599,1718105443874,-500.0,0.00021917,2]
[329101600,1718105443884,-501.11646839,0.00021917,2]
[329101601,1718105443894,-500.0,0.00021917,2]
[329101602,1718105443905,-503.93438398,0.00021917,2]
[329101603,1718105443917,-500.0,0.00021917,2]
[329101604,1718105443928,-500.0,0.00021917,2]
[329101605,1718105443939,-500.0,0.00021917,2]
[329101606,1718105443950,-502.98750538,0.00021917,2]
[329101607,1718105443961,-500.0,0.00021917,2]
[329101608,1718105443972,-504.84377823,0.00021917,2]
[329101609,1718105443983,-502.13028345,0.00021917,2]
[329101610,1718105443994,-512.54245142,0.00021917,2]
[329101611,1718105444015,-212.22132342,0.00021917,2]
[329101612,1718105444026,-500.0,0.00021917,2]
[329101613,1718105444037,-500.0,0.00021917,2]
[329101614,1718105444048,-494.36821011,0.00021917,2]
[329101615,1718105444060,-500.0,0.00021917,2]
[329101616,1718105444070,-500.0,0.00021917,2]
[329101617,1718105444081,-500.0,0.00021917,2]
[329101618,1718105444091,-500.0,0.00021917,2]
[329101619,1718105444105,-381.66709013,0.00021917,2]
[329101620,1718105444125,-484.86290987,0.00021917,2]
[329101621,1718105444136,-509.72041586,0.00021917,2]
[329101622,1718105444147,-410.71103803,0.00021917,2]
[329101623,1718105444289,-3056.43200358,0.0001676,2]
[329101624,1718105444302,-89.28896197,0.00021917,2]
[329101625,1718105444313,-500.0,0.00021917,2]
[329101626,1718105444324,-500.0,0.00021917,2]
[329101627,1718105444336,-502.57518118,0.00021917,2]
[329101628,1718105444349,-500.0,0.00021917,2]
[329101629,1718105444361,-300.29102287,0.00021917,2]
[329101630,1718105444373,-500.0,0.00021917,2]
[329101631,1718105444385,-887.97,0.00021917,2]
[329101632,1718105444397,-500.0,0.00021917,2]
[329101633,1718105444408,-500.0,0.00021917,2]
[329101634,1718105444420,-500.0,0.00021917,2]
[329101635,1718105444432,-510.13386643,0.00021917,2]
[329101636,1718105444442,-500.0,0.00021917,2]
[329101637,1718105444453,-500.0,0.00021917,2]
[329101638,1718105444464,-500.0,0.00021917,2]
[329101639,1718105444475,-500.0,0.00021917,2]
[329101640,1718105444485,-504.60574249,0.00021917,2]
[329101641,1718105444496,-500.0,0.00021917,2]
[329101642,1718105444506,-500.0,0.00021917,2]
[329101643,1718105444517,-500.0,0.00021917,2]
[329101644,1718105444528,-500.0,0.00021917,2]
[329101645,1718105444539,-379.65683132,0.00021917,2]
[329101646,1718105444550,-2547.81,0.00021917,2]
[329101647,1718105444561,-500.0,0.00021917,2]
[329101648,1718105444571,-500.0,0.00021917,2]
[329101649,1718105444582,-506.04564106,0.00021917,2]
[329101650,1718105444593,-714.42,0.00021917,2]
[329101651,1718105444604,-500.0,0.00021917,2]
[329101652,1718105444615,-500.0,0.00021917,2]
[329101653,1718105444625,-500.0,0.00021917,2]
[329101654,1718105444636,-500.0,0.00021917,2]
[329101655,1718105444646,-295.70232227,0.00021917,2]
[329101662,1718105447206,-207.77057091,0.00021917,2]
[329101663,1718105447217,-500.0,0.00021917,2]
[329101664,1718105447228,-394.89043576,0.00021917,2]
[329101665,1718105447247,-105.10956424,0.00021917,2]
[329101666,1718105447261,-2468.24405249,0.00021917,2]
[329101667,1718105447276,-467.70719969,0.00021917,2]
[329101668,1718105817389,6887.52811439,0.000125,2]
[329101669,1718105867881,509.03647881,9.999e-05,2]
[329101670,1718105911617,205.18,0.00010959,2]
[329101671,1718105912077,155.03875969,9.999e-05,2]
[329101672,1718105917144,3000.0,0.00014987,2]
[329101673,1718105922030,170.98,0.00010959,2]
[329101674,1718105932547,854.93,0.00010959,2]
[329101675,1718105944167,187.88991673,9.999e-05,2]
[329101679,1718105951105,24900.0,0.00014682,2]
[329101688,1718105970071,18272.78252996,0.00017898,13]
[329101689,1718105982326,155.03875969,0.00014535,2]
[329101690,1718105984346,305.33,0.00010959,2]
[329101691,1718105994847,254.44,0.00010959,2]
[329101692,1718105999946,411.64915333,9.999e-05,2]
[329101693,1718106000283,155.03875969,0.00014535,2]
[329101694,1718106005365,254.44,0.00010959,2]
[329101695,1718106015879,169.63,0.00010959,2]
[329101696,1718106018281,155.03875969,0.00014535,2]
[329101697,1718106026415,169.63,0.00010959,2]
[329101698,1718106036951,678.54,0.00010959,2]
[329101699,1718106038278,155.03875969,0.0001439,2]
[329101700,1718106042607,922.63463018,0.000155,2]
[329101701,1718106044019,242.45261852,9.999e-05,2]
[329101702,1718106060291,155.03875969,0.0001439,2]
[329101709,1718106076305,155.0356582,0.0001439,2]
[329101711,1718106100294,199.89482694,0.00014246,2]
[329101712,1718106105516,250.0,0.00014592,2]
[329101716,1718106201344,-509.03647881,0.00015584,2]
[329101717,1718106201376,-2114.12320999,0.00015584,2]
[329101718,1718106201409,-1877.1524641,0.00015585,2]
[329101719,1718106201440,-155.0356582,0.00015585,2]
[329101720,1718106201473,-13695.6521889,0.00015586,2]
[329101721,1718106210617,549.816747,0.00014595,2]
[329101722,1718106230064,523.7710216,9.999e-05,2]
[329101723,1718106230104,136.34876791,9.999e-05,2]
[329101724,1718106248223,1139.96765534,0.0001,2]
[329101780,1718106478949,4394.5393536,0.00014548,2]
[329101781,1718106494545,220.6921017,0.00014566,2]
[329101819,1718106633104,-805.22951312,0.00015489,2]
[329101820,1718106633160,-806.25732303,0.00015489,2]
[329101821,1718106633353,-265.66562795,0.00015489,2]
[329101822,1718106633364,-509.03647881,0.0001549,2]
[329101823,1718106633374,-46642.39053624,0.0001549,2]
[329101824,1718106633385,-9591.20034243,0.00015491,2]
[329101825,1718106633396,-300.0,0.00015491,2]
[329101826,1718106633406,-300.0,0.00015491,2]
[329101828,1718106633415,-738.10770416,0.000155,2]
[329101830,1718106633425,-1138.75507822,0.00015566,2]
[329101832,1718106633441,-8289.64214347,0.00015566,2]
[329101833,1718106633452,-718.58302246,0.00015569,2]
[329101835,1718106633463,-242.18987841,0.00015585,2]
[329101837,1718106633474,-309.9690031,0.00015593,2]
[329101839,1718106633485,-241.82585911,0.00015593,2]
[329101840,1718106633495,-2642.16842245,0.00015595,2]
[329101842,1718106633506,-411.3097755,0.00015595,2]
[329101844,1718106633516,-489.76196364,0.00015595,2]
[329101846,1718106633526,-660.11978951,0.00015595,2]
[329101847,1718106633537,-1441.96072993,0.00015595,2]
[329101849,1718106633548,-692.46643816,0.00015596,2]
[329101851,1718106633558,-174.08469328,0.00015596,2]
[329101852,1718106633568,-20064.53207877,0.00015597,2]
[329101890,1718106639201,-33816.12526463,0.00015597,2]
[329101892,1718106639213,-489.40086406,0.000156,2]
[329101894,1718106639223,-187.67226191,0.00015707,2]
[329101896,1718106639234,-204.10433477,0.00015709,2]
[329101897,1718106639247,-272.44632851,0.00015712,2]
[329101898,1718106639257,-837.83743989,0.00015712,2]
[329101899,1718106639269,-241.43322648,0.00015712,2]
[329101900,1718106639280,-1342.59061452,0.00015712,2]
[329101901,1718106639291,-3070.8095879,0.00015712,2]
[329101902,1718106639301,-1910.49735366,0.00015712,2]
[329101903,1718106639311,-759.67615126,0.00015712,2]
[329101904,1718106639322,-173.36940485,0.00015712,2]
[329101905,1718106639332,-2320.45422324,0.00015712,2]
[329101906,1718106639344,-164.8615316,0.00015712,2]
[329101907,1718106639354,-270.0388831,0.00015712,2]
[329101908,1718106639365,-309.92252015,0.00015712,2]
[329101909,1718106639375,-774.49408999,0.00015712,2]
[329101910,1718106639385,-286.58506874,0.00015712,2]
[329101911,1718106639396,-1500.82055846,0.00015713,2]
[329101912,1718106639407,-157.66978397,0.00015713,2]
[329101913,1718106639418,-317.3700773,0.00015713,2]
[329101914,1718106639428,-303.20651555,0.00015713,2]
[329101915,1718106639447,-21826.02029953,0.00015721,2]
[329101916,1718106639458,-285.84278041,0.00016431,2]
[329101917,1718106639469,-1984.07396026,0.00016432,2]
[329101918,1718106639480,-420.0,0.0001704,2]
[329101919,1718106639491,-738.10770414,0.00017079,2]
[329101920,1718106639501,-10490.37515331,0.00017898,2]
[329101921,1718106639511,-390.07944152,0.00018,2]
[329101922,1718106639521,-1355.41274288,0.00018,2]
[329101923,1718106639532,-2765.01589722,0.00018,2]
[329101924,1718106639542,-1263.57414759,0.00018208,2]
[329101925,1718106639552,-2121.07320042,0.00018208,2]
[329101926,1718106639564,-738.10770414,0.00018659,2]
[329101927,1718106639575,-25442.75195159,0.00019178,15]
[329101928,1718106639586,-9136.39126498,0.00019178,13]
[329101929,1718106639597,-254.71998944,0.00019178,2]
[329101930,1718106639608,-500.0,0.00019178,2]
[329101931,1718106639619,-500.0,0.00019178,2]
[329101932,1718106639629,-500.0,0.00019178,2]
[329101933,1718106639641,-500.0,0.00019178,2]
[329101934,1718106639653,-500.0,0.00019178,2]
[329101935,1718106639664,-500.0,0.00019178,2]
[329101936,1718106639675,-165.57142024,0.00019178,2]
[329101937,1718106639686,-500.0,0.00019178,2]
[329101938,1718106639697,-500.0,0.00019178,2]
[329101939,1718106639707,-500.0,0.00019178,2]
[329101940,1718106639718,-500.0,0.00019178,2]
[329101941,1718106639728,-500.0,0.00019178,2]
[329101942,1718106639739,-500.0,0.00019178,2]
[329101943,1718106639750,-500.0,0.00019178,2]
[329101944,1718106639760,-500.0,0.00019178,2]
[329101945,1718106639772,-499.99999999,0.00019178,2]
[329101946,1718106639782,-500.0,0.00019178,2]
[329101947,1718106639793,-500.0,0.00019178,2]
[329101948,1718106639803,-401.51570396,0.00019178,2]
[329101949,1718106639814,-500.0,0.00019178,2]
[329101950,1718106639824,-500.0,0.00019178,2]
[329101951,1718106639836,-500.0,0.00019178,2]
[329101952,1718106639846,-500.0,0.00019178,2]
[329101953,1718106639857,-500.0,0.00019178,2]
[329101954,1718106639867,-155.17007812,0.00019178,2]
[329101955,1718106639878,-500.0,0.00019178,2]
[329101956,1718106639889,-500.0,0.00019178,2]
[329101957,1718106639899,-500.0,0.00019178,2]
[329101958,1718106639911,-500.0,0.00019178,2]
[329101959,1718106639921,-500.0,0.00019178,2]
[329101960,1718106639933,-500.0,0.00019178,2]
[329101961,1718106639943,-193.58093638,0.00019178,2]
[329101962,1718106639953,-200.0,0.00019178,2]
[329101963,1718106639964,-500.0,0.00019178,2]
[329101964,1718106639974,-479.68061974,0.00019178,2]
[329101965,1718106639985,-500.0,0.00019178,2]
[329101966,1718106639996,-205.5292733,0.00019178,2]
[329101967,1718106640006,-500.0,0.00019178,2]
[329101968,1718106640017,-256.72854594,0.00019178,2]
[329101969,1718106640028,-200.0,0.00019178,2]
[329101970,1718106640038,-500.0,0.00019178,2]
[329101971,1718106640048,-500.0,0.00019178,2]
[329101972,1718106640058,-391.32068172,0.00019178,2]
[329101973,1718106640069,-500.0,0.00019178,2]
[329101974,1718106640079,-527.31174855,0.00019178,2]
[329101975,1718106640090,-500.0,0.00019178,2]
[329101976,1718106640100,-500.0,0.00019178,2]
[329101977,1718106640111,-500.0,0.00019178,2]
[329101978,1718106640121,-500.0,0.00019178,2]
[329101979,1718106640131,-500.0,0.00019178,2]
[329101980,1718106640145,-269.10391618,0.00019178,2]
[329101981,1718106640158,-500.0,0.00019178,2]
[329101982,1718106640169,-500.0,0.00019178,2]
[329101983,1718106640184,-500.0,0.00019178,2]
[329101984,1718106640195,-500.0,0.00019178,2]
[329101985,1718106640207,-500.0,0.00019178,2]
[329101986,1718106640218,-585.88854504,0.00019178,2]
[329101987,1718106640229,-500.0,0.00019178,2]
[329101988,1718106640240,-500.0,0.00019178,2]
[329101989,1718106640251,-500.0,0.00019178,2]
[329101990,1718106640262,-500.0,0.00019178,2]
[329101991,1718106640273,-500.0,0.00019178,2]
[329101992,1718106640284,-500.0,0.00019178,2]
[329101993,1718106640295,-391.32068172,0.00019178,2]
[329101995,1718106640306,-225.0,0.00019178,2]
[329101996,1718106640317,-500.0,0.00019178,2]
[329101998,1718106640327,-500.0,0.00019178,2]
[329102000,1718106640338,-168.0111077,0.00019178,2]
[329102001,1718106640349,-500.0,0.00019178,2]
[329102003,1718106640360,-265.02941433,0.00019178,2]
[329102004,1718106640371,-500.0,0.00019178,2]
[329102005,1718106640382,-204.80222105,0.00019178,2]
[329102006,1718106640393,-500.0,0.00019178,2]
[329102007,1718106640405,-500.0,0.00019178,2]
[329102008,1718106640415,-376.92770915,0.00019178,2]
[329102009,1718106640426,-500.0,0.00019178,2]
[329102010,1718106640444,-500.0,0.00019178,2]
[329102011,1718106640456,-529.07913635,0.0002,4]
[329102012,1718106640467,-2096.44122688,0.0002,7]
[329102013,1718106640478,-225.1695884,0.0002,2]
[329102014,1718106640489,-738.10770414,0.00020238,2]
[329102015,1718106640499,-292.5249381,0.00021178,2]
[329102016,1718106640510,-154.2534772,0.00021222,2]
[329102017,1718106640521,-499.4598699,0.0002126,2]
[329102018,1718106640531,-154.457605,0.0002126,2]
[329102019,1718106640542,-153.0,0.0002126,2]
[329102020,1718106640552,-153.0,0.0002126,2]
[329102021,1718106640562,-153.0,0.0002126,2]
[329102022,1718106640572,-153.0,0.0002126,2]
[329102023,1718106640583,-153.0,0.0002126,2]
[329102024,1718106640593,-153.0,0.0002126,2]
[329102025,1718106640603,-160.9867788,0.0002126,2]
[329102026,1718106640717,-4239.70515949,0.00021652,2]
[329102027,1718106640728,-2912.89102913,0.000217,7]
[329102028,1718106640739,-410.3,0.00021805,3]
[329102030,1718106640749,-190.7,0.00021805,3]
[329102031,1718106640760,-88888.0,0.00021817,3]
[329102032,1718106640770,-2000.0,0.00021817,2]
[329102033,1718106640780,-738.10770414,0.00021817,2]
[329102034,1718106640791,-549.816747,0.00021893,2]
[329102035,1718106640802,-174.92075192,0.00021914,2]
[329102037,1718106640812,-2814.56742105,0.00021915,2]
[329102038,1718106640823,-3000.0,0.00021916,2]
[329102039,1718106640834,-3000.0,0.00021916,2]
[329102040,1718106640844,-3000.0,0.00021916,2]
[329102041,1718106640855,-3000.0,0.00021916,2]
[329102042,1718106640865,-3000.0,0.00021916,2]
[329102043,1718106640877,-286.72900657,0.00021917,2]
[329102044,1718106640888,-13483.94434315,0.00021917,2]
[329102045,1718106640899,-124483.15017925,0.00021917,2]
[329102046,1718106640910,-513.73701891,0.00021917,2]
[329102047,1718106640920,-500.0,0.00021917,2]
[329102048,1718106640931,-500.0,0.00021917,2]
[329102049,1718106640941,-500.0,0.00021917,2]
[329102050,1718106640951,-500.0,0.00021917,2]
[329102051,1718106640961,-500.0,0.00021917,2]
[329102052,1718106640972,-501.83515497,0.00021917,2]
[329102053,1718106640983,-501.77015956,0.00021917,2]
[329102054,1718106640994,-500.93578537,0.00021917,2]
[329102055,1718106641004,-500.0,0.00021917,2]
[329102056,1718106641015,-500.0,0.00021917,2]
[329102057,1718106641025,-500.0,0.00021917,2]
[329102058,1718106641035,-500.0,0.00021917,2]
[329102059,1718106641046,-523.64325891,0.00021917,2]
[329102060,1718106641056,-447.96430116,0.00021917,2]
[329102062,1718106641067,-555.04581803,0.00021917,2]
[329102064,1718106641077,-364.17089129,0.00021917,2]
[329102065,1718106641087,-500.0,0.00021917,2]
[329102067,1718106641097,-501.08768205,0.00021917,2]
[329102069,1718106641108,-505.26650834,0.00021917,2]
[329102070,1718106641118,-183.12086041,0.00021917,2]
[329102071,1718106641129,-500.0,0.00021917,2]
[329102072,1718106641139,-500.0,0.00021917,2]
[329102073,1718106641149,-500.0,0.00021917,2]
[329102074,1718106641160,-500.0,0.00021917,2]
[329102075,1718106641173,-500.0,0.00021917,2]
[329102076,1718106641184,-500.0,0.00021917,2]
[329102077,1718106641195,-500.0,0.00021917,2]
[329102078,1718106641205,-500.0,0.00021917,2]
[329102079,1718106641216,-502.47805445,0.00021917,2]
[329102080,1718106641227,-368.41660308,0.00021917,2]
[329102081,1718106641238,-500.0,0.00021917,2]
[329102082,1718106641248,-502.33813299,0.00021917,2]
[329102083,1718106641261,-504.29842193,0.00021917,2]
[329102084,1718106641271,-500.0,0.00021917,2]
[329102085,1718106641281,-500.0,0.00021917,2]
[329102086,1718106641292,-500.0,0.00021917,2]
[329102087,1718106641303,-502.34144687,0.00021917,2]
[329102088,1718106641313,-500.0,0.00021917,2]
[329102089,1718106641323,-500.0,0.00021917,2]
[329102090,1718106641334,-500.0,0.00021917,2]
[329102091,1718106641344,-500.0,0.00021917,2]
[329102092,1718106641355,-500.0,0.00021917,2]
[329102093,1718106641365,-500.0,0.00021917,2]
[329102094,1718106641376,-500.0,0.00021917,2]
[329102095,1718106641386,-385.65748618,0.00021917,2]
[329102096,1718106641397,-500.0,0.00021917,2]
[329102097,1718106641409,-500.0,0.00021917,2]
[329102098,1718106641420,-500.0,0.00021917,2]
[329102099,1718106641431,-500.0,0.00021917,2]
[329102100,1718106641447,-500.0,0.00021917,2]
[329102101,1718106641458,-500.0,0.00021917,2]
[329102102,1718106641468,-500.0,0.00021917,2]
[329102103,1718106641480,-516.18877623,0.00021917,2]
[329102104,1718106641491,-500.0,0.00021917,2]
[329102105,1718106641501,-500.0,0.00021917,2]
[329102106,1718106641512,-500.0,0.00021917,2]
[329102107,1718106641524,-500.0,0.00021917,2]
[329102108,1718106641535,-500.0,0.00021917,2]
[329102109,1718106641546,-500.0,0.00021917,2]
[329102110,1718106641557,-500.0,0.00021917,2]
[329102111,1718106641568,-500.0,0.00021917,2]
[329102112,1718106641579,-520.10187489,0.00021917,2]
[329102113,1718106641589,-153.94324272,0.00021917,2]
[329102114,1718106641600,-500.0,0.00021917,2]
[329102115,1718106641611,-500.0,0.00021917,2]
[329102116,1718106641623,-500.0,0.00021917,2]
[329102117,1718106641634,-500.0,0.00021917,2]
[329102118,1718106641646,-500.0,0.00021917,2]
[329102119,1718106641659,-500.0,0.00021917,2]
[329102120,1718106641670,-548.21499535,0.00021917,2]
[329102121,1718106641680,-500.0,0.00021917,2]
[329102122,1718106641693,-500.0,0.00021917,2]
[329102123,1718106641705,-500.0,0.00021917,2]
[329102124,1718106641717,-507.30766513,0.00021917,2]
[329102125,1718106641728,-500.0,0.00021917,2]
[329102126,1718106641739,-500.61856563,0.00021917,2]
[329102127,1718106641750,-500.0,0.00021917,2]
[329102128,1718106641761,-555.58793569,0.00021917,2]
[329102129,1718106641772,-500.0,0.00021917,2]
[329102130,1718106641783,-500.0,0.00021917,2]